Cogmind - Beta 13 @@@ ROGUE MODE // 2024.04.26 @ 15:08:29 Player: opdo Result: Destroyed by Y-45 Defender with Heavy Assault Rifle Performance ------------- Evolutions (1) 500 Regions Visited (4) 800 Robots Destroyed (29) 145 Value Destroyed (870) 870 Prototype IDs (1) 20 Alien Tech Used (0) 0 Bonus (16) 16 TOTAL SCORE: 2351 Bonus ------- High Alert Combat Kills 16 Cogmind --------- Core Integrity 0/400 Matter 290/300 Energy 124/125 System Corruption 0% Temperature Cool (3) Movement Flying (34) Location -9/Storage Parts ------- > --- POWER (1) -------- Light Ion Engine > --- PROPULSION (3) --- Improved Flight Unit Improved Flight Unit Improved Flight Unit > --- UTILITY (3) ------ Small Storage Unit Weight Redist. System Signal Interpreter > --- WEAPON (2) ------- Light Assault Rifle > --- INVENTORY (8) ---- Aluminum Leg Hover Unit Flight Unit Flight Unit Flight Unit Light Regenerative Plating Medium Laser Mining Laser Peak State ------------ > --- POWER ------------ Light Ion Engine > --- PROPULSION ------- Improved Flight Unit Improved Flight Unit Improved Flight Unit > --- UTILITY ---------- Small Storage Unit Weight Redist. System Signal Interpreter > --- WEAPON ----------- Light Assault Rifle > --- INVENTORY -------- Aluminum Leg Hover Unit Flight Unit Flight Unit Flight Unit Light Regenerative Plating Medium Laser Mining Laser [Rating: 16] Favorites ----------- Power Ion Engine Engine Ion Engine Propulsion Aluminum Leg Leg Aluminum Leg Wheel Compact Wheel Hover Unit Hover Unit Flight Unit Flight Unit Utility Small Storage Unit Device Improved Terrain Scanner Storage Small Storage Unit Processor Signal Interpreter Weapon Medium Laser Energy Gun Medium Laser Ballistic Gun Light Assault Rifle Launcher Grenade Launcher Build | -11 -10 -10 -9 -9 ------- Run | Yrd Mat Min Mat Sto Slots Evolved 2 | . . . 2 . Power . | . . . . . Propulsion 1 | . . . 1 . Utility 1 | . . . 1 . Weapon . | . . . . . Parts Attached 38 | 8 2 . 6 22 Power 4 | 2 . . 1 1 Engine 4 | 2 . . 1 1 Core . | . . . . . Reactor . | . . . . . Propulsion 16 | 2 2 . 1 11 Treads . | . . . . . Leg 6 | 2 2 . . 2 Wheel 2 | . . . . 2 Hover 2 | . . . . 2 Flight 6 | . . . 1 5 Utility 7 | 2 . . 2 3 Device 4 | 1 . . . 3 Storage 1 | 1 . . . . Processor 2 | . . . 2 . Hackware . | . . . . . Protection . | . . . . . Artifact . | . . . . . Weapon 11 | 2 . . 2 7 Energy Gun 4 | 2 . . 1 1 Energy Cannon . | . . . . . Ballistic Gun 6 | . . . 1 5 Ballistic Cannon . | . . . . . Launcher 1 | . . . . 1 Special Weapon . | . . . . . Impact Weapon . | . . . . . Slashing Weapon . | . . . . . Piercing Weapon . | . . . . . Special Melee Weapon . | . . . . . Unidentified Prototypes 1 | . . . . 1 Parts Lost 14 | . 1 . 1 12 Power 1 | . . . . 1 Propulsion 7 | . 1 . . 6 Utility 2 | . . . . 2 Weapon 4 | . . . 1 3 Highest Loss Streak 5 | . 1 . 1 5 To Critical Strikes . | . . . . . Average Slot Usage (%) 92 | . 100 100 98 81 Engine 12 | . 14 14 11 11 Leg 18 | . 28 28 22 7 Wheel 2 | . . . . 5 Flight 5 | . . . 11 9 Device 9 | . 14 14 9 5 Storage 12 | . 14 14 11 11 Processor 6 | . . . 12 11 Energy Gun 14 | . 28 28 12 1 Ballistic Gun 8 | . . . 9 16 Naked Turns . | . . . . . Heaviest Build 24 | 15 15 15 17 24 Greatest Support 32 | 20 20 20 20 32 Greatest Overweight (x) 3 | 3 1 . . 3 Average Overweight (x) . | . . . . . Largest Inventory Capacity 8 | 8 8 8 8 8 Average Capacity 7 | 7 8 8 8 8 Most Carried 8 | 5 8 8 8 8 Average Carried 6 | 2 5 8 7 6 Final Capacity 8 | 8 8 8 8 8 Final Carried 8 | 5 8 8 8 8 Class Distribution -------------------- 81% | Mutant 18% | Scavenger-Mutant Dominant Class ---------------- Mutant | -10/Materials Mutant | -10/Mines Mutant | -9/Materials Scavenger-Mutant | -9/Storage Resources | -11 -10 -10 -9 -9 ----------- Run | Yrd Mat Min Mat Sto Matter Collected 702 | 186 104 . 84 328 Remotely . | . . . . . Salvage Created 1176 | 27 317 . 152 680 Parts 68 | 3 7 . 9 49 Haulers Intercepted 1 | . . . . 1 Recyclers Shooed . | . . . . . Parts Field Recycled . | . . . . . Retrieved Matter . | . . . . . Parts Self-Destructed . | . . . . . Prevented . | . . . . . Kills | -11 -10 -10 -9 -9 ------- Run | Yrd Mat Min Mat Sto Combat Hostiles Destroyed 21 | . 6 . 2 13 Guns 18 | . 6 . 1 11 AOE 2 | . . . . 2 Classes Destroyed 8 | 1 2 . 1 4 Builder 1 | . . . . 1 Tunneler 1 | 1 . . . . Hauler 1 | . . . . 1 Recycler 1 | . . . . 1 Watcher 4 | . 1 . 2 1 Swarmer 3 | . . . . 3 Grunt 10 | . 6 . . 4 Sentry 8 | . . . 2 6 Best Kill Streak 6 | 1 2 . 2 6 Combat Bots Only 5 | . 2 . 1 5 Max Kills in Single Turn 2 | 1 1 . 1 2 Gunslinging . | . . . . . Exploded 1 | . . . . 1 Melee . | . . . . . Uniques/NPCs Destroyed . | . . . . . Combat | -11 -10 -10 -9 -9 -------- Run | Yrd Mat Min Mat Sto Hostile Shots Fired 168 | . 36 . 25 107 Missed 47 | . 11 . 9 27 Damage Taken 1722 | . 336 . 230 1156 Core 483 | . 71 . 70 342 Absorbed by Shields . | . . . . . Core Remaining (%) 85 | 100 . 71 . . Volleys Fired 109 | 2 26 . 14 67 Largest 2 | 2 2 . 2 2 Hottest 100 | 100 100 . 65 65 Shots Fired 171 | 4 51 . 28 88 Gun 168 | 4 51 . 28 85 Cannon . | . . . . . Launcher 3 | . . . . 3 Special . | . . . . . Kinetic 96 | . . . 14 82 Thermal 55 | 4 51 . . . Explosive 3 | . . . . 3 Electromagnetic 17 | . . . 14 3 Robot Hit Streak 16 | 2 5 . 16 10 Robot Miss Streak 5 | 1 2 . 2 5 Penetration Max . | . . . . . Secondary Targets . | . . . . . Shots Hit Robots 112 | 2 35 . 22 53 Core Hits 53 | 1 15 . 5 32 Critical Kills . | . . . . . Critical Parts Destroyed 1 | . . . 1 . Critical Strikes 5 | . 4 . 1 . Burn 4 | . 4 . . . Destroy 1 | . . . 1 . Melee Attacks . | . . . . . Impact . | . . . . . Slashing . | . . . . . Piercing . | . . . . . Sneak Attacks . | . . . . . Combat Hostiles . | . . . . . Follow-up Attacks . | . . . . . Damage Inflicted 1368 | 25 438 . 282 623 Guns 1229 | 25 438 . 282 484 Cannons . | . . . . . Explosions 133 | . . . . 133 Melee . | . . . . . Ramming 6 | . . . . 6 Kinetic 595 | . . . 151 444 Thermal 463 | 25 438 . . . Explosive 133 | . . . . 133 Electromagnetic 171 | . . . 131 40 Impact . | . . . . . Slashing . | . . . . . Piercing . | . . . . . Highest Corruption 2 | . 2 2 . . Average Corruption 2 | . 2 2 . . Corruption Purged . | . . . . . Corruption Blocked . | . . . . . Effects 2 | . 2 . . . Message Errors 1 | . 1 . . . Weapon Failures 1 | . 1 . . . Overload Shots . | . . . . . Overflow Damage . | . . . . . Projectiles . | . . . . . Explosions . | . . . . . Melee . | . . . . . Knockbacks . | . . . . . Impact . | . . . . . Kinetic . | . . . . . Secondary . | . . . . . Self-Inflicted Damage 111 | . . . . 111 Shots 3 | . . . . 3 Rammed 1 | . . . . 1 Targets Rammed 1 | . . . . 1 Kicked . | . . . . . Crushed . | . . . . . Highest Temperature 291 | 78 291 . 31 39 Average Temperature 77 | 39 109 . 15 13 Received Heat Transfer 651 | . 195 . 99 357 Effects 5 | . 5 . . . Energy Bleed 2 | . 2 . . . Interference 3 | . 3 . . . Siege Activations . | . . . . . Robots Corrupted 1 | . . . 1 . Combat Hostiles 1 | . . . 1 . Parts Fried 2 | . . . 2 . Impact Corruptions . | . . . . . Robots Melted . | . . . . . Combat Hostiles . | . . . . . Parts Melted 5 | . 5 . . . Heat Transferred 1665 | 74 1591 . . . Parts Sabotaged . | . . . . . Parts Stolen . | . . . . . Parts Stripped . | . . . . . Power Chain Reactions . | . . . . . Alert | -11 -10 -10 -9 -9 ------- Run | Yrd Mat Min Mat Sto Peak Influence 443 | 5 177 . 109 443 Initial 45 | . 3 . . 45 Average 137 | . 73 . 43 276 Maximum Alert Level 2 | . . . . 2 Low Security (%) 70 | 100 100 100 100 19 Level 1 22 | . . . . 59 Level 2 7 | . . . . 20 Level 3 . | . . . . . Level 4 . | . . . . . Level 5 . | . . . . . High Security . | . . . . . Max Security . | . . . . . Squads Dispatched 3 | . . . . 3 Investigation 2 | . . . . 2 Extermination . | . . . . . Reinforcement 1 | . . . . 1 Assault . | . . . . . Garrison . | . . . . . Intercept . | . . . . . Searches Triggered . | . . . . . Construction Impeded . | . . . . . Haulers Reinforced . | . . . . . Active Scanning Responses . | . . . . . Cargo Convoy Interrupts . | . . . . . Stealth | -11 -10 -10 -9 -9 --------- Run | Yrd Mat Min Mat Sto Distress Signals 4 | . 2 . 1 1 Communications Jammed . | . . . . . Distress Signals . | . . . . . Times Spotted 35 | . 10 . 6 19 Peak Tracking Total 5 | . 3 . 2 5 Tactical Retreats . | . . . . . Traps | -11 -10 -10 -9 -9 ------- Run | Yrd Mat Min Mat Sto Traps Triggered 2 | . 1 . . 1 Indirectly . | . . . . . Trap Hack Attempts . | . . . . . Triggered . | . . . . . Disarmed . | . . . . . Reprogrammed . | . . . . . Reused . | . . . . . Traps Extracted . | . . . . . Installed . | . . . . . Triggered . | . . . . . Machines | -11 -10 -10 -9 -9 ---------- Run | Yrd Mat Min Mat Sto Machines Disabled 3 | . . . . 3 Max in Single Turn 1 | . . . . 1 Machines Repaired . | . . . . . Machines Dismantled . | . . . . . Machines Sabotaged . | . . . . . Overloaded Fab Kills . | . . . . . Hacking | -11 -10 -10 -9 -9 --------- Run | Yrd Mat Min Mat Sto Machines Accessed 6 | . 1 . 1 4 Terminals 6 | . 1 . 1 4 Fabricators . | . . . . . Repair Stations . | . . . . . Recycling Units . | . . . . . Scanalyzers . | . . . . . Garrison Access . | . . . . . Total Hacks 15 | . 3 . 2 10 Successful 5 | . 1 . 1 3 Failed 10 | . 2 . 1 7 Catastrophic 2 | . 1 . . 1 Database Lockouts . | . . . . . Manual 12 | . 3 . 2 7 Terminals 15 | . 3 . 2 10 Fabricators . | . . . . . Repair Stations . | . . . . . Recycling Units . | . . . . . Scanalyzers . | . . . . . Garrison Access . | . . . . . Terminal Hacks 2 | . . . . 2 Open Door 2 | . . . . 2 Fabricator Hacks . | . . . . . Repair Station Hacks . | . . . . . Recycling Unit Hacks . | . . . . . Scanalyzer . | . . . . . Garrison Access Hacks . | . . . . . Unauthorized Hacks 3 | . 1 . 1 1 Terminals 3 | . 1 . 1 1 Assimilate 1 | . . . . 1 Botnet 2 | . 1 . 1 . Fabricators . | . . . . . Repair Stations . | . . . . . Recycling Units . | . . . . . Scanalyzers . | . . . . . Garrison Access . | . . . . . Data Cores Recovered . | . . . . . Used . | . . . . . Hacking Detections 5 | . 1 . 1 3 Full Trace Events 2 | . . . . 2 Feedback Events . | . . . . . Feedback Blocked . | . . . . . Robot Schematics Acquired . | . . . . . Robots Built . | . . . . . Authchips . | . . . . . Time . | . . . . . Total Robot Build Rating . | . . . . . Part Schematics Acquired . | . . . . . Parts Built . | . . . . . Authchips . | . . . . . Time . | . . . . . Total Part Build Rating . | . . . . . Parts Repaired . | . . . . . Time . | . . . . . Parts Recycled . | . . . . . Recycled Matter . | . . . . . Retrieved Matter . | . . . . . Retrieved Components . | . . . . . Parts Scanalyzed . | . . . . . Part Schematics Acquired . | . . . . . Parts Damaged . | . . . . . Bothacking | -11 -10 -10 -9 -9 ------------ Run | Yrd Mat Min Mat Sto Used RIF Installer . | . . . . . Robots Hacked . | . . . . . Non-combat . | . . . . . Combat . | . . . . . Robot Hacks Applied . | . . . . . Relay Couplers Released . | . . . . . Fabnet Peak Effective % . | . . . . . Robots Rewired . | . . . . . Allies Hacked . | . . . . . Hacks Repelled . | . . . . . Allies | -11 -10 -10 -9 -9 -------- Run | Yrd Mat Min Mat Sto Total Allies . | . . . . . Largest Group . | . . . . . Highest-Rated Group . | . . . . . Highest-Rated Ally . | . . . . . Total Orders . | . . . . . Ally Attacks . | . . . . . Total Damage . | . . . . . Kills . | . . . . . Allies Corrupted . | . . . . . Allies Melted . | . . . . . Intel | -11 -10 -10 -9 -9 ------- Run | Yrd Mat Min Mat Sto Robot Analysis Total . | . . . . . Derelict Logs Recovered . | . . . . . Drone Launches . | . . . . . Drone Recoveries . | . . . . . Exploration | -11 -10 -10 -9 -9 ------------- Run | Yrd Mat Min Mat Sto Turns Passed 1231 | 79 440 32 221 459 Spaces Moved 737 | 48 284 27 116 262 Core 25 | 10 . . . 15 Treads . | . . . . . Legs 509 | 38 284 27 116 44 Wheels 60 | . . . . 60 Hover 36 | . . . . 36 Flight 107 | . . . . 107 Fastest Speed 34 | 50 120 120 120 34 Average Speed 114 | 120 120 120 120 104 Slowest Speed 280 | 200 190 120 120 280 Overloaded Moves . | . . . . . Propulsion Burnouts . | . . . . . Robots Hopped . | . . . . . Cave-ins Triggered . | . . . . . Exploration Rate (%) 28 | 4 58 15 11 54 Regions Visited 4 Branch Regions 2 Pre-discovered Areas . | . . . . . Known Exits Taken 1 | . . . 1 . Unknown Exits Taken 3 | 1 1 1 . . Scrap Searched . | . . . . . Spaces Dug . | . . . . . Terrain Destroyed 25 | . . . . 25 Melee . | . . . . . Projectile . | . . . . . AOE 25 | . . . . 25 Terrain Rammed . | . . . . . Walls Destroyed . | . . . . . Machines Disabled . | . . . . . Actions | -11 -10 -10 -9 -9 --------- Run | Yrd Mat Min Mat Sto Total 952 | 61 330 26 170 365 Wait 46 | . 11 . 31 4 Move 733 | 47 283 26 115 262 Hop . | . . . . . Pick Up 12 | 4 5 . 1 2 Fast Attach 26 | 7 1 . 3 15 Attach 6 | . . . 2 4 Detach 3 | . . . 1 2 Swap 6 | 1 1 . 1 3 Drop 10 | . 3 . 2 5 Fire 109 | 2 26 . 14 67 Melee . | . . . . . Ram 1 | . . . . 1 Kick . | . . . . . Crush . | . . . . . Escape Stasis . | . . . . . Rewire . | . . . . . Trap . | . . . . . Miscellaneous . | . . . . . Route ------- -11/Scrapyard -10/Materials (discovered 3 exits: *Mat / [*Min x2]) -10/Mines -9/Materials -9/Storage History --------- Turn | Location | Event 21 | -11/Scrapyard | Discovered new exit (range 15) 80 | -11/Scrapyard | Entered Materials 80 | -10/Materials | Discovered new exit (range 7) 188 | -10/Materials | Discovered new exit (range 16) 300 | -10/Materials | Build established: Mutant 500 | -10/Materials | Discovered new exit (range 14) 520 | -10/Materials | Entered Mines 544 | -10/Mines | Discovered new exit (range 6) 552 | -10/Mines | Entered Materials 552 | -9/Materials | Evolved 2 slots: Propulsion x1, Utility x1 717 | -9/Materials | Discovered new exit (range 13) 738 | -9/Materials | Identified exit to Storage 773 | -9/Materials | Entered Storage 926 | -9/Storage | Core integrity fell below 50% 974 | -9/Storage | Lost 5 parts (1p2n1u1w) 1037 | -9/Storage | Core integrity fell below 20% 1085 | -9/Storage | Lost 3 parts (3n) 1220 | -9/Storage | Found Prototype Protection 1232 | -9/Storage | Destroyed by Y-45 Defender with Heavy Assault Rifle Last Messages --------------- 01208_ Acquired 48 matter. 01208_ Acquired Weight Redist. System. 01219_ Connecting with Door Terminal... >>Open(Door) Sealed Heavy Doors opened. 01219_ ALERT: Suspicious activity at Terminal S005. Dispatching Investigation squad. 01220_ Acquired Prototype Protection. 01225_ Connecting with Terminal... 01227_ O-16 Technician sends out distress signal. 01227_ O-16 Technician: "IFF HANDSHAKE FAILED. SECURING TERMINAL." 01228_ Connecting with Terminal... >>Trojan(Assimilate) Trojan loaded successfully. Testing... System interface override in place. 01228_ ALERT: Suspicious activity at Terminal S002. Dispatching Investigation squad. Map ----- +----------------------------------------------------+ | | | | | | | | | | | | | | | | | | | ?????????????????????????????????????? | | ?????????????????????????????????????? | | ?????????????????????????????????????? | | ?????????????????????????????????????? | | ?????????????????????????????????????? | | ?????????????????????????????????????? | | ?????????????????????????????????????? | | ?????????????????????????????????????? | | ????????????????????##???????????????? | | ???????????????????##Y#####??????????? | | ???????????????????#!= #??????????? | | ???????????????????#!= #??????????? | | ???????????????????#== #??????????? | | ???????????????#+### #?######???? | | ???????????????# ?? ! #? ! #???? | | ???????????????# #??? # #???? | | ???????????????# ###+##@# """ #???? | | ???????????????+ + """ #???? | | ???????????????# # """ #???? | | ???????????????# """ # #???? | | ????????????#+## "T" ###+####???? | | ????????????# ####???? | | ????????##### o #???? | | ?????? ! #???? | | ?####???##+### % T#??? | | ?# "???????# ##??? | | ?# ""??????# #???? | | ?# """?????# ###### ##+#???? | | ?# ?????# #????? #??????? | | ?# ????## #????? #??????? | | ?? [ ????#T #######????? #??????? | | ??? ????## #??"""""?????/??????? | | ???? ?????# #??""""" #?#??????? | | ????##/####### ## """"" #????????? | | ????# # #????????? | | ????# + #????????? | | ????# # #????????? | | ????# ###### # #????????? | | ????# #????# #? #????????? | | ????# #????# #?#########????????? | | ????# #????###+##??????????????????? | +----------------------------------------------------+ Best States ------------- Heat Dissipation 28 Energy Generation 12 Energy Capacity 265 Matter Stores 300 Matter Capacity 300 Sight Range 16 Terrain Scan Range 16 Terrain Scan Density 10 Additional Mass Support 6 Evasion (%) 63 Targeting Accuracy 6 Item Schematics ----------------- None Robot Schematics ------------------ None Fabricated ------------ Nothing Alien Tech Used ----------------- None Achievements -------------- None Challenges ------------ None Game ------ Seed InsulatedVariableLance Manual? 0 Play Time 00:12:06 Cumulative 46.9 hours Start 2024.04.26 @ 14:59:25 End 2024.04.26 @ 15:08:29 Sessions 1 Manual Loads 0 Difficulty Rogue Special Mode None Game No. 127 Rogue 125 Adventurer 2 Explorer 0 Win Type - Total 0 Types 0/0/0/0/0/0/0/0/0 Lore% 35 Gallery% 49 Achievement% 35 Wizard Run 0 Options --------- Layout 2 ASCII 0 Keyboard 0 Movement Arrows Keybinds 0 Fullscreen 2 Font 24/Smallcaps Map View 50x44 Zoom Use 0% Tactical HUD 1 Map Filters NONE Filters NONE Steam 1 RUN: e055ca2f-7834-4fb4-bdd4-1d4a731f7cdf